fUSD/lending_fUSD_20260524
["ID","MTS","AMOUNT","RATE_DAILY","PERIOD"]
[422875518,1779557445000,-263.0,0.00027501,2]
[422875556,1779557445000,-150.0,0.0002755,30]
[422875545,1779557445000,-1028.22778608,0.0002752,5]
[422875516,1779557445000,-6430.009,0.0002745,2]
[422875506,1779557445000,-500.0,0.000274,2]
[422875517,1779557445000,-204.25614092,0.000275,2]
[422875498,1779557445000,-300.0,0.00027397,2]
[422875492,1779557445000,-150.0,0.00027397,2]
[422875496,1779557445000,-527.33,0.00027397,2]
[422875493,1779557445000,-1500.0,0.00027397,2]
[422875499,1779557445000,-1000.0,0.00027397,20]
[422875494,1779557445000,-1003.01,0.00027397,2]
[422875495,1779557445000,-1019.62,0.00027397,2]
[422875497,1779557445000,-1466.51,0.00027397,2]
[422875501,1779557445000,-37787.66,0.00027397,10]
[422875500,1779557445000,-1465.32,0.00027397,2]
[422875504,1779557445000,-151.8,0.00027397,3]
[422875505,1779557445000,-500.0,0.000274,2]
[422875511,1779557445000,-500.0,0.000274,2]
[422875502,1779557445000,-1508.63772828,0.00027397,7]
[422875503,1779557445000,-150.86377284,0.00027397,7]
[422875507,1779557445000,-500.0,0.000274,2]
[422875508,1779557445000,-500.0,0.000274,2]
[422875557,1779557445000,-150.0,0.0002755,30]
[422875510,1779557445000,-500.0,0.000274,2]
[422875509,1779557445000,-500.0,0.000274,2]
[422875513,1779557445000,-559.43,0.000274,2]
[422875523,1779557445000,-1065.7143216,0.0002752,5]
[422875512,1779557445000,-500.0,0.000274,2]
[422875524,1779557445000,-1079.24377039,0.0002752,5]
[422875525,1779557445000,-1066.36007068,0.0002752,5]
[422875514,1779557445000,-1603.66,0.000274,7]
[422875520,1779557445000,-151.0,0.00027501,2]
[422875522,1779557445000,-1102.83849574,0.0002752,5]
[422875519,1779557445000,-150.0,0.00027501,2]
[422875521,1779557445000,-1095.82194409,0.0002752,5]
[422875554,1779557445000,-9141.64,0.0002755,30]
[422875515,1779557445000,-1887.6,0.000274,7]
[422875559,1779557445000,-150.0,0.0002755,30]
[422875603,1779557445000,-5250.88,0.00027872,2]
[422875594,1779557445000,-644.79446245,0.00027867,2]
[422875592,1779557445000,-558.93,0.00027855,7]
[422875600,1779557445000,-5258.97,0.00027872,2]
[422875593,1779557445000,-947.0,0.00027856,4]
[422875597,1779557445000,-301.14337869,0.0002787,2]
[422875605,1779557445000,-559.05,0.00027885,30]
[422875620,1779557445000,-51622.24942784,0.00028,2]
[422875602,1779557445000,-9873.41,0.00027872,2]
[422875598,1779557445000,-202.35287585,0.0002787,2]
[422875604,1779557445000,-9141.64,0.00027872,2]
[422875596,1779557445000,-721.12765534,0.00027867,2]
[422875601,1779557445000,-9107.99,0.00027872,2]
[422875599,1779557445000,-9893.11,0.00027872,2]
[422875607,1779557445000,-3416.26,0.00027896,7]
[422875606,1779557445000,-558.93,0.00027885,30]
[422875608,1779557445000,-734.8,0.000279,7]
[422875619,1779557445000,-200.0,0.00028,20]
[422875615,1779557445000,-558.93,0.00027946,7]
[422875614,1779557445000,-559.05,0.00027946,7]
[422875610,1779557445000,-558.93,0.00027916,2]
[422875609,1779557445000,-559.05,0.00027916,2]
[422875618,1779557445000,-1000.0,0.00027999,20]
[422875611,1779557445000,-1271.0,0.00027922,2]
[422875617,1779557445000,-558.93,0.00027977,30]
[422875613,1779557445000,-1351.0,0.00027922,2]
[422875616,1779557445000,-559.05,0.00027977,30]
[422875612,1779557445000,-1224.0,0.00027922,2]
[422875621,1779557445000,-208.78535381,0.00028,10]
[422875591,1779557445000,-559.05,0.00027855,7]
[422875586,1779557445000,-559.05,0.00027794,30]
[422875595,1779557445000,-500.0,0.00027867,2]
[422875590,1779557445000,-558.93,0.00027824,2]
[422875564,1779557445000,-558.93,0.00027611,30]
[422875558,1779557445000,-150.0,0.0002755,30]
[422875551,1779557445000,-9107.99,0.0002755,30]
[422875555,1779557445000,-558.93,0.0002755,2]
[422875582,1779557445000,-5000.0,0.00027785,2]
[422875561,1779557445000,-559.05,0.0002758,7]
[422875566,1779557445000,-558.93,0.00027641,2]
[422875577,1779557445000,-559.05,0.00027733,2]
[422875565,1779557445000,-559.05,0.00027641,2]
[422875576,1779557445000,-9141.64,0.00027711,7]
[422875569,1779557445000,-559.05,0.00027702,30]
[422875567,1779557445000,-559.05,0.00027672,7]
[422875568,1779557445000,-558.93,0.00027672,7]
[422875570,1779557445000,-558.93,0.00027702,30]
[422875575,1779557445000,-5250.88,0.00027711,7]
[422875553,1779557445000,-5250.88,0.0002755,30]
[422875573,1779557445000,-9107.99,0.00027711,7]
[422875572,1779557445000,-5258.97,0.00027711,7]
[422875579,1779557445000,-559.05,0.00027763,7]
[422875581,1779557445000,-6725.66200747,0.00027785,2]
[422875589,1779557445000,-559.05,0.00027824,2]
[422875587,1779557445000,-558.93,0.00027794,30]
[422875584,1779557445000,-5000.0,0.00027785,2]
[422875585,1779557445000,-5000.0,0.00027785,2]
[422875560,1779557445000,-159.0,0.0002755,30]
[422875583,1779557445000,-5000.0,0.00027785,2]
[422875580,1779557445000,-558.93,0.00027763,7]
[422875578,1779557445000,-558.93,0.00027733,2]
[422875571,1779557445000,-9893.11,0.00027711,7]
[422875574,1779557445000,-9873.41,0.00027711,7]
[422875588,1779557445000,-200.0,0.00027801,2]
[422875640,1779557446000,-558.93,0.00028038,7]
[422875641,1779557446000,-559.05,0.00028068,30]
[422875639,1779557446000,-559.05,0.00028038,7]
[422875636,1779557446000,-9873.41,0.00028033,30]
[422875638,1779557446000,-9141.64,0.00028033,30]
[422875633,1779557446000,-9893.11,0.00028033,30]
[422875635,1779557446000,-9107.99,0.00028033,30]
[422875634,1779557446000,-5258.97,0.00028033,30]
[422875645,1779557446000,-150.0,0.00028082,30]
[422875644,1779557446000,-200.0,0.0002808,2]
[422875628,1779557446000,-380398.05305187,0.00028,7]
[422875629,1779557446000,-162843.86367577,0.00028,7]
[422875623,1779557446000,-23879.0013634,0.00028,60]
[422875624,1779557446000,-160.0,0.00028,2]
[422875625,1779557446000,-318.0,0.00028,2]
[422875627,1779557446000,-215.31523495,0.00028,10]
[422875622,1779557446000,-208.78535381,0.00028,7]
[422875631,1779557446000,-559.05,0.00028007,2]
[422875632,1779557446000,-558.93,0.00028007,2]
[422875643,1779557446000,-200.0,0.0002807,2]
[422875630,1779557446000,-1720.59968433,0.00028,7]
[422875626,1779557446000,-215.31523495,0.00028,30]
[422875637,1779557446000,-5250.88,0.00028033,30]
[422875647,1779557446000,-558.93,0.00028099,2]
[422875642,1779557446000,-558.93,0.00028068,30]
[422875668,1779557446000,-444.0,0.0002755,10]
[422875667,1779557446000,-927.0,0.0002497,2]
[422875664,1779557446000,-927.0,0.0001897,2]
[422875666,1779557446000,-927.0,0.0002197,2]
[422875665,1779557446000,-187.0,0.0002,2]
[422875662,1779557446000,-401.65716503,0.0001597,2]
[422875661,1779557446000,-779.86460149,0.00028194,7]
[422875659,1779557446000,-745.31810942,0.00028194,7]
[422875660,1779557446000,-621.0,0.00028194,7]
[422875658,1779557446000,-588.0,0.00023,7]
[422875663,1779557446000,-525.34283497,0.0001597,2]
[422875656,1779557446000,-989.17586578,0.00023,7]
[422875655,1779557446000,-424.0,0.00023,7]
[422875654,1779557446000,-1739.53435792,0.00028194,7]
[422875650,1779557446000,-558.99,0.0002813,7]
[422875651,1779557446000,-9893.11,0.00028194,7]
[422875652,1779557446000,-1359.8801477,0.00028194,7]
[422875653,1779557446000,-3899.0898523,0.00028194,7]
[422875648,1779557446000,-1887.6,0.000281,7]
[422875649,1779557446000,-559.09,0.0002813,7]
[422875657,1779557446000,-145.82413422,0.00023,7]
[422875646,1779557446000,-559.05,0.00028099,2]
[422875721,1779557447000,-160.31470885,0.00028747,7]
[422875720,1779557447000,-156.2218778,0.00028747,7]
[422875709,1779557447000,-182.5995255,0.00028747,7]
[422875712,1779557447000,-159.26845892,0.00028747,7]
[422875711,1779557447000,-174.34275012,0.00028747,5]
[422875707,1779557447000,-1533.90115894,0.00028723,2]
[422875719,1779557447000,-201.7325522,0.00028747,7]
[422875705,1779557447000,-1887.6,0.000287,7]
[422875698,1779557447000,-372.0,0.00028637,2]
[422875708,1779557447000,-1026.33501216,0.00028723,2]
[422875704,1779557447000,-165.38,0.0002866,120]
[422875714,1779557447000,-308.82498325,0.00028747,7]
[422875710,1779557447000,-170.10638334,0.00028747,7]
[422875715,1779557447000,-253.32317433,0.00028747,7]
[422875725,1779557447000,-211.32837876,0.00028747,7]
[422875717,1779557447000,-161.17312284,0.00028747,7]
[422875718,1779557447000,-311.52615123,0.00028747,7]
[422875716,1779557447000,-175.37168332,0.00028747,7]
[422875723,1779557447000,-196.26478263,0.00028747,7]
[422875733,1779557447000,-187.29427337,0.00028747,7]
[422875724,1779557447000,-169.23552718,0.00028747,7]
[422875722,1779557447000,-163.14596671,0.00028747,7]
[422875735,1779557447000,-209.59003024,0.00028747,2]
[422875734,1779557447000,-208.91482408,0.00028747,7]
[422875706,1779557447000,-734.8,0.000287,7]
[422875731,1779557447000,-183.96154667,0.00028747,7]
[422875727,1779557447000,-178.33526263,0.00028747,7]
[422875728,1779557447000,-154.58408784,0.00028747,7]
[422875729,1779557447000,-202.95238443,0.00028747,7]
[422875713,1779557447000,-174.77282736,0.00028747,7]
[422875700,1779557447000,-161.38757049,0.0002864,7]
[422875685,1779557447000,-200.0,0.000286,7]
[422875699,1779557447000,-153.21456831,0.0002864,2]
[422875730,1779557447000,-160.50566975,0.00028747,7]
[422875671,1779557447000,-5222.27293117,0.00028194,7]
[422875672,1779557447000,-9873.41,0.00028194,7]
[422875669,1779557447000,-559.29,0.0002755,2]
[422875670,1779557447000,-927.0,0.0002797,2]
[422875673,1779557447000,-5250.88,0.00028194,7]
[422875680,1779557447000,-947.0,0.00028411,5]
[422875679,1779557447000,-200.0,0.000284,7]
[422875675,1779557447000,-901.0,0.00028194,10]
[422875677,1779557447000,-1603.66,0.000282,7]
[422875678,1779557447000,-3590.0,0.00028267,2]
[422875676,1779557447000,-200.0,0.000282,7]
[422875674,1779557447000,-9141.64,0.00028194,7]
[422875682,1779557447000,-600.0,0.00028486,60]
[422875702,1779557447000,-204.72411003,0.0002864,7]
[422875692,1779557447000,-350.0,0.00028637,2]
[422875694,1779557447000,-350.0,0.00028637,2]
[422875683,1779557447000,-168.53,0.00028493,2]
[422875681,1779557447000,-500.0,0.00028486,60]
[422875691,1779557447000,-350.0,0.00028637,2]
[422875684,1779557447000,-512.12,0.00028597,2]
[422875686,1779557447000,-37349.02233596,0.00028623,2]
[422875690,1779557447000,-350.0,0.00028637,2]
[422875687,1779557447000,-171.09097698,0.00028628,7]
[422875688,1779557447000,-192.75232566,0.00028628,7]
[422875689,1779557447000,-182.1623379,0.00028628,7]
[422875695,1779557447000,-350.0,0.00028637,2]
[422875697,1779557447000,-350.0,0.00028637,2]
[422875703,1779557447000,-158.44658964,0.0002864,7]
[422875696,1779557447000,-350.0,0.00028637,2]
[422875693,1779557447000,-350.0,0.00028637,2]
[422875726,1779557447000,-174.6393377,0.00028747,7]
[422875736,1779557447000,-150.0,0.00028767,2]
[422875747,1779557447000,-177.1,0.00028971,2]
[422875801,1779557447000,-1069.04,0.00029,30]
[422875803,1779557447000,-1069.04,0.00029,30]
[422875805,1779557447000,-1069.04,0.00029,30]
[422875806,1779557447000,-1069.04,0.00029,30]
[422875809,1779557447000,-1069.04,0.00029,30]
[422875811,1779557447000,-1069.04,0.00029,30]
[422875807,1779557447000,-1069.04,0.00029,30]
[422875813,1779557447000,-215.31523495,0.00029,30]
[422875815,1779557447000,-525.75605147,0.00029,2]
[422875817,1779557447000,-1000.0,0.00029,2]
[422875820,1779557447000,-152.0,0.00029,2]
[422875819,1779557447000,-2598.737131,0.00029,2]
[422875822,1779557447000,-152.0,0.00029,2]
[422875824,1779557447000,-152.0,0.00029,2]
[422875799,1779557447000,-1069.04,0.00029,30]
[422875826,1779557447000,-152.0,0.00029,2]
[422875830,1779557447000,-152.0,0.00029,2]
[422875832,1779557447000,-152.0,0.00029,2]
[422875840,1779557447000,-152.0,0.00029,2]
[422875838,1779557447000,-152.0,0.00029,2]
[422875836,1779557447000,-152.0,0.00029,2]
[422875834,1779557447000,-152.0,0.00029,2]
[422875842,1779557447000,-1080.414501,0.00029,7]
[422875848,1779557447000,-1080.414501,0.00029,7]
[422875844,1779557447000,-1000.0,0.00029,2]
[422875853,1779557447000,-151.0,0.00029,7]
[422875850,1779557447000,-1080.414501,0.00029,7]
[422875732,1779557447000,-150.61744731,0.00028747,7]
[422875851,1779557447000,-1000.0,0.00029,2]
[422875855,1779557447000,-1000.0,0.00029,2]
[422875828,1779557447000,-1000.0,0.00029,2]
[422875797,1779557447000,-1069.04,0.00029,30]
[422875846,1779557447000,-1080.414501,0.00029,7]
[422875787,1779557447000,-18228.0407228,0.00029,2]
[422875783,1779557447000,-219.29015313,0.00029,2]
[422875737,1779557447000,-209.00647482,0.000288,7]
[422875741,1779557447000,-8548.26,0.00028821,2]
[422875752,1779557447000,-305.13,0.00029,2]
[422875749,1779557447000,-500.0,0.00029,2]
[422875742,1779557447000,-150.0,0.00028897,2]
[422875740,1779557447000,-215.31523495,0.000288,30]
[422875739,1779557447000,-208.78535381,0.000288,7]
[422875743,1779557447000,-1603.66,0.000289,7]
[422875857,1779557447000,-151.0,0.00029,7]
[422875751,1779557447000,-742.85811109,0.00029,2]
[422875738,1779557447000,-208.78535381,0.000288,10]
[422875754,1779557447000,-305.13,0.00029,2]
[422875757,1779557447000,-2273.9358932,0.00029,2]
[422875759,1779557447000,-1500.0,0.00029,15]
[422875744,1779557447000,-947.0,0.00028965,6]
[422875763,1779557447000,-1513.349408,0.00029,15]
[422875761,1779557447000,-385.30239555,0.00029,2]
[422875789,1779557447000,-510.0921829,0.00029,2]
[422875793,1779557447000,-10339.90807077,0.00029,2]
[422875781,1779557447000,-208.78535381,0.00029,30]
[422875791,1779557447000,-76511.7860459,0.00029,2]
[422875779,1779557447000,-368.53787333,0.00029,2]
[422875785,1779557447000,-475.77072069,0.00029,2]
[422875774,1779557447000,-6978.0750048,0.00029,2]
[422875768,1779557447000,-1011.75,0.00029,2]
[422875776,1779557447000,-1474.11626684,0.00029,2]
[422875795,1779557447000,-185.0,0.00029,2]
[422875765,1779557447000,-10000.0,0.00029,2]
[422875772,1779557447000,-200.0,0.00029,2]
[422875770,1779557447000,-3302.40284942,0.00029,2]
[422875931,1779557448000,-1000.0,0.00029499,40]
[422875944,1779557448000,-1166.04472086,0.000295,48]
[422875924,1779557448000,-300.0,0.00029308,60]
[422875928,1779557448000,-600.0,0.00029308,60]
[422875926,1779557448000,-193.0,0.00029308,60]
[422875935,1779557448000,-545.50018599,0.000295,48]
[422875933,1779557448000,-545.50018599,0.000295,48]
[422875950,1779557448000,-1294.75722147,0.000295,48]
[422875952,1779557448000,-1341.23430911,0.000295,48]
[422875946,1779557448000,-1166.04472086,0.000295,48]
[422875954,1779557448000,-1341.23430911,0.000295,48]
[422875922,1779557448000,-300.0,0.00029308,60]
[422875968,1779557448000,-1000.0,0.00029519,6]
[422875948,1779557448000,-1294.75722147,0.000295,48]
[422875958,1779557448000,-1422.81538601,0.000295,48]
[422875960,1779557448000,-153.17406757,0.000295,48]
[422875962,1779557448000,-158.42328066,0.000295,48]
[422875966,1779557448000,-734.8,0.000295,7]
[422875971,1779557448000,-947.0,0.0002952,6]
[422875964,1779557448000,-1500.0,0.000295,2]
[422875979,1779557448000,-1000.0,0.00029645,7]
[422875977,1779557448000,-2110.0,0.0002963,2]
[422875975,1779557448000,-1603.66,0.000296,7]
[422875973,1779557448000,-1122.82185534,0.00029554,7]
[422875981,1779557448000,-1000.0,0.0002967,2]
[422875920,1779557448000,-635.0,0.00029308,2]
[422875956,1779557448000,-1422.81538601,0.000295,48]
[422875913,1779557448000,-900.0,0.00029308,2]
[422875887,1779557448000,-305.13,0.00029003,2]
[422875917,1779557448000,-900.0,0.00029308,2]
[422875859,1779557448000,-16864.97,0.00029,7]
[422875871,1779557448000,-1000.0,0.00029,2]
[422875861,1779557448000,-151.0,0.00029,7]
[422875879,1779557448000,-316.48520809,0.00029,2]
[422875877,1779557448000,-1410.0,0.00029,2]
[422875869,1779557448000,-168.47357744,0.00029,2]
[422875865,1779557448000,-1000.0,0.00029,2]
[422875875,1779557448000,-10000.0,0.00029,2]
[422875863,1779557448000,-151.0,0.00029,7]
[422875873,1779557448000,-1000.0,0.00029,2]
[422875867,1779557448000,-1000.0,0.00029,2]
[422875883,1779557448000,-305.13,0.00029001,2]
[422875881,1779557448000,-305.13,0.00029001,2]
[422875897,1779557448000,-255.86604863,0.00029226,2]
[422875899,1779557448000,-1887.6,0.000293,7]
[422875903,1779557448000,-900.0,0.00029308,2]
[422875901,1779557448000,-1500.0,0.000293,7]
[422875885,1779557448000,-305.13,0.00029002,2]
[422875889,1779557448000,-305.13,0.00029004,2]
[422875895,1779557448000,-152.0,0.00029122,3]
[422875893,1779557448000,-402.31,0.000291,2]
[422875891,1779557448000,-163.53,0.000291,4]
[422875905,1779557448000,-900.0,0.00029308,2]
[422875911,1779557448000,-900.0,0.00029308,2]
[422875909,1779557448000,-900.0,0.00029308,2]
[422875907,1779557448000,-900.0,0.00029308,2]
[422875915,1779557448000,-900.0,0.00029308,2]
[422875919,1779557448000,-900.0,0.00029308,2]
[422875983,1779557448000,-1000.0,0.0002967,2]
[422876001,1779557448000,-1000.0,0.00029687,2]
[422875996,1779557448000,-1000.0,0.00029687,2]
[422876041,1779557448000,-155.0,0.00029844,30]
[422876047,1779557448000,-187.0,0.00029844,30]
[422876045,1779557448000,-2130.0,0.00029844,30]
[422876061,1779557448000,-151.0,0.00029899,7]
[422876059,1779557448000,-151.0,0.00029899,7]
[422876066,1779557448000,-729.391673,0.00029899,7]
[422876063,1779557448000,-729.391673,0.00029899,7]
[422876078,1779557448000,-1040.376546,0.00029899,7]
[422876067,1779557448000,-729.391673,0.00029899,7]
[422876074,1779557448000,-1040.376546,0.00029899,7]
[422876072,1779557448000,-1040.376546,0.00029899,7]
[422876070,1779557448000,-729.391673,0.00029899,7]
[422876044,1779557448000,-591.0,0.00029844,30]
[422876080,1779557448000,-1450.670935,0.00029899,7]
[422876085,1779557448000,-1450.670935,0.00029899,7]
[422876095,1779557448000,-150.0,0.000299,2]
[422876091,1779557448000,-150.0,0.000299,2]
[422876089,1779557448000,-80179.76332394,0.000299,2]
[422876097,1779557448000,-150.0,0.000299,2]
[422876101,1779557448000,-150.0,0.000299,2]
[422876099,1779557448000,-150.0,0.000299,2]
[422876103,1779557448000,-150.0,0.000299,2]
[422876087,1779557448000,-1450.670935,0.00029899,7]
[422876093,1779557448000,-150.0,0.000299,2]
[422876106,1779557448000,-152.0,0.00029901,30]
[422875985,1779557448000,-1000.0,0.0002967,2]
[422876082,1779557448000,-1450.670935,0.00029899,7]
[422876057,1779557448000,-151.0,0.00029899,7]
[422876076,1779557448000,-1040.376546,0.00029899,7]
[422876043,1779557448000,-152.0,0.00029844,30]
[422876003,1779557448000,-1000.0,0.00029715,7]
[422876039,1779557448000,-153.0,0.00029844,30]
[422875997,1779557448000,-1000.0,0.00029687,2]
[422875989,1779557448000,-1000.0,0.0002967,2]
[422876008,1779557448000,-750.0,0.00029726,60]
[422876005,1779557448000,-262.52138871,0.00029726,60]
[422875991,1779557448000,-1592.23,0.00029678,7]
[422875987,1779557448000,-1000.0,0.0002967,2]
[422876010,1779557448000,-750.0,0.00029726,60]
[422875999,1779557448000,-1000.0,0.00029687,2]
[422876014,1779557448000,-1000.0,0.00029751,7]
[422876026,1779557448000,-685.571514,0.00029835,2]
[422876022,1779557448000,-1592.23,0.00029829,7]
[422876028,1779557448000,-135962.4490182,0.00029835,2]
[422875993,1779557448000,-1000.0,0.00029687,2]
[422876016,1779557448000,-1000.0,0.00029823,7]
[422876055,1779557448000,-1000.0,0.00029886,7]
[422876037,1779557448000,-8473.1980014,0.00029835,2]
[422876049,1779557448000,-163.21234366,0.00029856,7]
[422876051,1779557448000,-236.98186902,0.00029856,7]
[422876035,1779557448000,-1344.059273,0.00029835,2]
[422876033,1779557448000,-272516.2722124,0.00029835,2]
[422876053,1779557448000,-7186.14,0.00029865,2]
[422876024,1779557448000,-863.2678791,0.00029835,2]
[422876018,1779557448000,-5000.0,0.00029829,2]
[422876020,1779557448000,-5006.4748556,0.00029829,2]
[422876012,1779557448000,-683.0,0.00029726,60]
[422876031,1779557448000,-1616.404762,0.00029835,2]
[422876194,1779557449000,-325.08,0.0003,11]
[422876200,1779557449000,-20203.53857991,0.0003,2]
[422876198,1779557449000,-1081.00236023,0.0003,5]
[422876196,1779557449000,-6600.0,0.0003,3]
[422876186,1779557449000,-1000.0,0.0003,2]
[422876188,1779557449000,-200.0,0.0003,11]
[422876174,1779557449000,-1000.0,0.00029999,30]
[422876168,1779557449000,-1000.0,0.00029999,5]
[422876177,1779557449000,-1000.0,0.00029999,31]
[422876172,1779557449000,-1000.0,0.00029999,10]
[422876170,1779557449000,-1000.0,0.00029999,3]
[422876175,1779557449000,-1000.0,0.00029999,12]
[422876176,1779557449000,-1000.0,0.00029999,4]
[422876235,1779557449000,-200.0,0.0003,2]
[422876217,1779557449000,-200.0,0.0003,2]
[422876204,1779557449000,-2000.0,0.0003,3]
[422876202,1779557449000,-87877.0,0.0003,2]
[422876206,1779557449000,-1122.47300339,0.0003,2]
[422876208,1779557449000,-1848.17075224,0.0003,2]
[422876209,1779557449000,-1000.0,0.0003,2]
[422876211,1779557449000,-165.74982504,0.0003,2]
[422876213,1779557449000,-311.7082256,0.0003,5]
[422876215,1779557449000,-151.0,0.0003,7]
[422876223,1779557449000,-179.523232,0.0003,7]
[422876219,1779557449000,-179.523232,0.0003,7]
[422876227,1779557449000,-200.0,0.0003,2]
[422876225,1779557449000,-179.523232,0.0003,7]
[422876184,1779557449000,-150.0,0.0003,2]
[422876192,1779557449000,-200.0,0.0003,11]
[422876181,1779557449000,-1000.0,0.00029999,25]
[422876112,1779557449000,-694.0,0.00029901,30]
[422876179,1779557449000,-1000.0,0.00029999,11]
[422876108,1779557449000,-159.0,0.00029901,30]
[422876110,1779557449000,-435.0,0.00029901,30]
[422876114,1779557449000,-185.0,0.00029901,30]
[422876124,1779557449000,-1551.46175145,0.00029942,52]
[422876125,1779557449000,-1551.46175145,0.00029942,52]
[422876131,1779557449000,-385.50465132,0.00029967,7]
[422876129,1779557449000,-342.18195396,0.00029967,7]
[422876127,1779557449000,-1000.0,0.00029965,7]
[422876120,1779557449000,-1000.0,0.00029909,7]
[422876118,1779557449000,-1000.0,0.00029903,7]
[422876116,1779557449000,-1000.0,0.00029903,7]
[422876122,1779557449000,-1000.0,0.00029937,7]
[422876133,1779557449000,-196.15631375,0.00029967,7]
[422876135,1779557449000,-364.3246758,0.00029967,7]
[422876137,1779557449000,-1000.0,0.00029969,7]
[422876139,1779557449000,-1000.0,0.00029977,7]
[422876148,1779557449000,-306.42913662,0.0002998,2]
[422876141,1779557449000,-1592.23,0.00029979,7]
[422876144,1779557449000,-2729.53,0.00029979,7]
[422876154,1779557449000,-409.44822005,0.0002998,7]
[422876145,1779557449000,-322.77514098,0.0002998,7]
[422876152,1779557449000,-209.93639366,0.0002998,7]
[422876150,1779557449000,-183.67527336,0.0002998,7]
[422876156,1779557449000,-316.89317929,0.0002998,7]
[422876158,1779557449000,-500.0,0.00029981,15]
[422876160,1779557449000,-241.06699613,0.0002999,2]
[422876162,1779557449000,-183.52,0.00029999,3]
[422876164,1779557449000,-428.23,0.00029999,3]
[422876166,1779557449000,-611.76,0.00029999,3]
[422876182,1779557449000,-1000.0,0.00029999,22]
[422876237,1779557449000,-171.0,0.0003001,30]
[422876190,1779557449000,-200.0,0.0003,11]
[422876229,1779557449000,-200.0,0.0003,2]
[422876303,1779557449000,-213.89060392,0.0003009,7]
[422876309,1779557449000,-405.90476885,0.0003009,7]
[422876298,1779557449000,-349.2786754,0.0003009,7]
[422876307,1779557449000,-249.05987865,0.0003009,7]
[422876314,1779557449000,-367.92309333,0.0003009,7]
[422876316,1779557449000,-190.60364545,0.0003009,2]
[422876318,1779557449000,-203.06048155,0.0003009,7]
[422876319,1779557449000,-172.95555271,0.0003009,7]
[422876325,1779557449000,-417.82964816,0.0003009,7]
[422876329,1779557449000,-1000.0,0.00030099,14]
[422876321,1779557449000,-155.24840033,0.0003009,2]
[422876327,1779557449000,-226.87043613,0.0003009,7]
[422876322,1779557449000,-301.23489461,0.0003009,7]
[422876323,1779557449000,-374.58854673,0.0003009,7]
[422876311,1779557449000,-321.01133949,0.0003009,7]
[422876324,1779557449000,-196.11617319,0.0003009,7]
[422876328,1779557449000,-419.18006048,0.0003009,2]
[422876331,1779557449000,-150.0,0.000301,14]
[422876332,1779557449000,-200.0,0.000301,11]
[422876330,1779557449000,-1887.6,0.000301,7]
[422876333,1779557449000,-150.0,0.000301,14]
[422876334,1779557449000,-927.43325091,0.000301,2]
[422876336,1779557449000,-194.168,0.000301,22]
[422876335,1779557449000,-927.43325091,0.000301,2]
[422876337,1779557449000,-1160.22644581,0.000301,2]
[422876338,1779557449000,-1160.22644581,0.000301,2]
[422876340,1779557449000,-1000.0,0.00030129,120]
[422876339,1779557449000,-2000.0,0.000301,2]
[422876341,1779557449000,-1000.0,0.00030129,2]
[422876231,1779557449000,-1500.0,0.0003,2]
[422876326,1779557449000,-176.10906571,0.0003009,2]
[422876299,1779557449000,-209.24015663,0.0003009,7]
[422876221,1779557449000,-179.523232,0.0003,7]
[422876296,1779557449000,-422.65675752,0.0003009,7]